fUSD/lending_fUSD_20240428
["ID","MTS","AMOUNT","RATE_DAILY","PERIOD"]
[52683,1714332698171,-1112.23,0.00012876,2]
[52685,1714332698463,-3135.39,0.00012876,2]
[52686,1714332698473,-1141.2,0.00012876,2]
[52687,1714332698483,-500.0,0.00012876,2]
[52689,1714332698502,-500.0,0.00012876,2]
[52691,1714332698521,-1026.71,0.00012876,2]
[52693,1714332698540,-768.49,0.00012876,2]
[52695,1714332698559,-500.0,0.00012876,2]
[52697,1714332698578,-1149.55,0.00012876,2]
[52699,1714332698598,-1154.15,0.00012876,2]
[52701,1714332698617,-500.0,0.00012876,2]
[52703,1714332698638,-500.0,0.00012876,2]
[52705,1714332698656,-587.34,0.00012876,2]
[52707,1714332698675,-500.0,0.00012876,2]
[52708,1714332698684,-500.0,0.00012876,2]
[52709,1714332698694,-667.82,0.00012876,2]
[52710,1714332698706,-500.0,0.00012876,2]
[52711,1714332698718,-500.0,0.00012876,2]
[52712,1714332698727,-1626.01,0.00012876,2]
[52713,1714332698737,-500.0,0.00012876,2]
[52714,1714332698746,-500.0,0.00012876,2]
[52715,1714332698755,-974.35,0.00012876,2]
[52716,1714332698764,-500.0,0.00012876,2]
[52717,1714332698774,-500.0,0.00012876,2]
[52718,1714332698783,-925.59,0.00012876,2]
[52719,1714332698794,-1632.62,0.00012876,2]
[52720,1714332698804,-542.61,0.00012876,2]
[52721,1714332698813,-500.0,0.00012876,2]
[52722,1714332698823,-29183.3,0.00012876,2]
[52723,1714332698832,-500.0,0.00012876,2]
[52724,1714332698841,-500.0,0.00012876,2]
[52725,1714332698851,-2058.85,0.00012876,2]
[52727,1714332698870,-500.0,0.00012876,2]
[52729,1714332698891,-645.54,0.00012876,2]
[52731,1714332698910,-500.0,0.00012876,2]
[52733,1714332698930,-1428.38,0.00012876,2]
[52735,1714332698949,-3955.52,0.00012876,2]
[52737,1714332698969,-500.0,0.00012876,2]
[52739,1714332698988,-500.0,0.00012876,2]
[52741,1714332699007,-502.62,0.00012876,2]
[52743,1714332699027,-1542.66,0.00012876,2]
[52745,1714332699046,-500.0,0.00012876,2]
[52747,1714332699065,-500.0,0.00012876,2]
[52749,1714332699084,-500.0,0.00012876,2]
[52751,1714332699103,-500.0,0.00012876,2]
[52753,1714332699124,-500.0,0.00012876,2]
[52755,1714332699144,-541.9,0.00012876,2]
[52757,1714332699164,-500.0,0.00012876,2]
[52759,1714332699184,-500.0,0.00012876,2]
[52761,1714332699208,-500.0,0.00012876,2]
[52763,1714332699229,-368.92,0.00012876,2]
[52765,1714332699251,-500.0,0.00012876,2]
[52767,1714332699271,-500.0,0.00012876,2]
[52769,1714332699291,-1365.07,0.00012876,2]
[52771,1714332699310,-676.21,0.00012876,2]
[52773,1714332699329,-1872.89,0.00012876,2]
[52775,1714332699348,-151.0,0.00012876,2]
[52777,1714332699367,-500.0,0.00012876,2]
[52779,1714332699388,-500.0,0.00012876,2]
[52781,1714332699407,-500.0,0.00012876,2]
[52783,1714332699427,-500.0,0.00012876,2]
[52785,1714332699447,-500.0,0.00012876,2]
[52787,1714332699466,-500.0,0.00012876,2]
[52789,1714332699484,-500.0,0.00012876,2]
[52791,1714332699503,-500.0,0.00012876,2]
[52793,1714332699521,-583.55,0.00012876,2]
[52795,1714332699539,-477.180475,0.00012876,2]
[52797,1714332699558,-750.57,0.00012876,2]
[52799,1714332699576,-500.0,0.00012876,2]
[52801,1714332699594,-500.0,0.00012876,2]
[52803,1714332699614,-946.93,0.00012876,2]
[52805,1714332699634,-1559.81,0.00012876,2]
[52807,1714332699653,-500.0,0.00012876,2]
[52809,1714332699672,-500.0,0.00012876,2]
[52811,1714332699690,-151.0,0.00012876,2]
[52813,1714332699709,-708.74,0.00012876,2]
[52815,1714332699732,-500.0,0.00012876,2]
[52817,1714332699751,-151.0,0.00012876,2]
[52819,1714332699770,-500.0,0.00012876,2]
[52821,1714332699790,-500.0,0.00012876,2]
[52823,1714332699809,-500.0,0.00012876,2]
[52825,1714332699828,-500.0,0.00012876,2]
[52827,1714332699847,-871.33,0.00012876,2]
[52829,1714332699871,-500.0,0.00012876,2]
[52831,1714332699892,-500.0,0.00012876,2]
[52833,1714332699911,-500.0,0.00012876,2]
[52835,1714332699929,-1888.98,0.00012876,2]
[52837,1714332699948,-151.0,0.00012876,2]
[52839,1714332699967,-1621.44,0.00012876,2]
[52841,1714332699986,-800.93,0.00012876,2]
[52843,1714332700004,-500.0,0.00012876,2]
[52845,1714332700023,-433.30737,0.00012876,2]
[52847,1714332700043,-500.0,0.00012876,2]
[52849,1714332700063,-6175.8,0.00012876,2]
[52851,1714332700083,-1013.17,0.00012876,2]
[52853,1714332700102,-500.0,0.00012876,2]
[52855,1714332700121,-273.108739,0.00012876,2]
[52857,1714332700141,-1383.98619087,0.0001299,3]
[52859,1714332700160,-1748.09424184,0.00013,2]
[52861,1714332700180,-3062.77258402,0.00013007,2]
[52863,1714332700198,-500.0,0.0001315,2]
[52865,1714332700217,-500.0,0.0001315,2]
[52867,1714332700235,-895.08,0.0001315,2]
[52869,1714332700253,-500.0,0.0001315,2]
[52871,1714332700272,-548.18,0.0001315,2]
[52873,1714332700292,-500.0,0.0001315,2]
[52875,1714332700310,-201.0,0.0001315,2]
[52877,1714332700329,-489.45,0.0001315,2]
[52879,1714332700348,-307.39,0.0001315,2]
[52881,1714332700367,-500.0,0.0001315,2]
[52883,1714332700386,-500.0,0.0001315,2]
[52885,1714332700404,-500.0,0.0001315,2]
[52887,1714332700423,-500.0,0.0001315,2]
[52889,1714332700443,-500.0,0.0001315,2]
[52891,1714332700461,-654.13,0.0001315,2]
[52893,1714332700479,-500.0,0.0001315,2]
[52895,1714332700498,-544.93,0.0001315,2]
[52897,1714332700517,-500.0,0.0001315,2]
[52899,1714332700535,-500.0,0.0001315,2]
[52901,1714332700554,-500.0,0.0001315,2]
[52903,1714332700572,-500.0,0.0001315,2]
[52905,1714332700591,-500.0,0.0001315,2]
[52907,1714332700609,-500.0,0.0001315,2]
[52909,1714332700629,-500.0,0.0001315,2]
[52911,1714332700647,-500.0,0.0001315,2]
[52913,1714332700664,-500.0,0.0001315,2]
[52915,1714332700683,-902.88,0.0001315,2]
[52917,1714332700702,-500.0,0.0001315,2]
[52919,1714332700724,-649.93,0.0001315,2]
[52921,1714332700743,-599.09,0.0001315,2]
[52923,1714332700767,-500.0,0.0001315,2]
[52925,1714332700785,-500.0,0.0001315,2]
[52927,1714332700807,-301.28,0.0001315,2]
[52929,1714332700826,-500.0,0.0001315,2]
[52931,1714332700848,-500.0,0.0001315,2]
[52933,1714332700879,-539.77,0.0001315,2]
[52935,1714332700905,-500.0,0.0001315,2]
[52937,1714332700932,-338.04,0.0001315,2]
[52939,1714332700963,-500.0,0.0001315,2]
[52941,1714332700991,-634.21,0.0001315,2]
[52943,1714332701018,-500.0,0.0001315,2]
[52945,1714332701044,-500.0,0.0001315,2]
[52947,1714332701068,-640.01,0.0001315,2]
[52949,1714332701094,-500.0,0.0001315,2]
[52951,1714332701122,-500.0,0.0001315,2]
[52953,1714332701152,-517.51,0.0001315,2]
[52955,1714332701173,-500.0,0.0001315,2]
[52957,1714332701199,-401.31,0.0001315,2]
[52959,1714332701225,-464.44,0.0001315,2]
[52960,1714332701237,-500.0,0.0001315,2]
[52961,1714332701249,-500.0,0.0001315,2]
[52962,1714332701262,-500.0,0.0001315,2]
[52963,1714332701274,-500.0,0.0001315,2]
[52964,1714332701285,-150.0,0.0001315,2]
[52965,1714332701299,-500.0,0.0001315,2]
[52967,1714332701323,-500.0,0.0001315,2]
[52969,1714332701348,-359.52,0.0001315,2]
[52971,1714332701372,-500.0,0.0001315,2]
[52973,1714332701398,-500.0,0.0001315,2]
[52974,1714332701410,-500.0,0.0001315,2]
[52975,1714332701423,-527.9,0.0001315,2]
[52976,1714332701435,-500.0,0.0001315,2]
[52977,1714332701448,-520.36,0.0001315,2]
[52979,1714332701473,-500.0,0.0001315,2]
[52980,1714332701487,-455.26,0.0001315,2]
[52981,1714332701502,-530.16,0.0001315,2]
[52982,1714332701514,-500.0,0.0001315,2]
[52983,1714332701526,-561.0,0.0001315,2]
[52985,1714332701549,-500.0,0.0001315,2]
[52987,1714332701574,-500.0,0.0001315,2]
[52988,1714332701588,-500.0,0.0001315,2]
[52989,1714332701600,-500.0,0.0001315,2]
[52991,1714332701625,-500.0,0.0001315,2]
[52993,1714332701648,-500.0,0.0001315,2]
[52995,1714332701672,-500.0,0.0001315,2]
[52997,1714332701698,-347.84,0.0001315,2]
[52999,1714332701724,-500.0,0.0001315,2]
[53001,1714332701748,-1112.76,0.0001315,2]
[53003,1714332701772,-500.0,0.0001315,2]
[53005,1714332701798,-1080.1,0.0001315,2]
[53007,1714332701822,-500.0,0.0001315,2]
[53009,1714332701845,-503.33,0.0001315,2]
[53011,1714332701869,-500.0,0.0001315,2]
[53013,1714332701894,-978.11,0.0001315,2]
[53014,1714332701906,-1921.69,0.0001315,2]
[53015,1714332701918,-500.0,0.0001315,2]
[53016,1714332701930,-2450.5,0.0001315,2]
[53017,1714332701942,-689.83,0.0001315,2]
[53018,1714332701953,-602.89,0.0001315,2]
[53019,1714332701965,-579.57,0.0001315,2]
[53020,1714332701976,-713.0,0.0001315,2]
[53021,1714332701987,-516.552777,0.0001315,2]
[53022,1714332701999,-561.12,0.0001315,2]
[53023,1714332702010,-500.0,0.0001315,2]
[53025,1714332702033,-500.0,0.0001315,2]
[53027,1714332702056,-500.0,0.0001315,2]
[53029,1714332702078,-664.11,0.0001315,2]
[53031,1714332702101,-713.48,0.0001315,2]
[53033,1714332702125,-500.0,0.0001315,2]
[53035,1714332702149,-500.0,0.0001315,2]
[53037,1714332702172,-151.0,0.0001315,2]
[53039,1714332702195,-271.92,0.0001315,2]
[53041,1714332702219,-951.91,0.0001315,2]
[53042,1714332702231,-513.46,0.0001315,2]
[53043,1714332702243,-1240.81,0.0001315,2]
[53044,1714332702255,-584.86,0.0001315,2]
[53045,1714332702266,-1112.23,0.0001315,2]
[53046,1714332702278,-1318.94,0.0001315,2]
[53047,1714332702288,-3135.39,0.0001315,2]
[53048,1714332702299,-1141.2,0.0001315,2]
[53049,1714332702311,-500.0,0.0001315,2]
[53050,1714332702323,-547.39,0.0001315,2]
[53051,1714332702335,-596.77,0.0001315,2]
[53052,1714332702347,-160.088939,0.0001315,2]
[53053,1714332702359,-163.88,0.0001315,2]
[53055,1714332702384,-502.19,0.0001315,2]
[53057,1714332702407,-160.088939,0.0001315,2]
[53059,1714332702432,-500.0,0.0001315,2]
[53061,1714332702456,-1154.15,0.0001315,2]
[53063,1714332702480,-212.38876,0.0001315,2]
[53065,1714332702503,-574.46,0.0001315,2]
[53067,1714332702528,-212.38876,0.0001315,2]
[53069,1714332702551,-259.224662,0.0001315,2]
[53071,1714332702575,-151.0,0.0001315,2]
[53073,1714332702598,-500.0,0.0001315,2]
[53075,1714332702621,-500.0,0.0001315,2]
[53077,1714332702645,-667.82,0.0001315,2]
[53079,1714332702667,-407.65715,0.0001315,2]
[53081,1714332702690,-407.65715,0.0001315,2]
[53082,1714332702701,-1626.01,0.0001315,2]
[53083,1714332702715,-500.0,0.0001315,2]
[53085,1714332702739,-974.35,0.0001315,2]
[53087,1714332702763,-500.0,0.0001315,2]
[53089,1714332702787,-1632.62,0.0001315,2]
[53091,1714332702811,-260.00766245,0.0001315,2]
[53093,1714332702835,-485.32,0.0001315,2]
[53095,1714332702858,-2058.85,0.0001315,2]
[53097,1714332702884,-500.0,0.0001315,2]
[53099,1714332702907,-876.76,0.0001315,2]
[53101,1714332702930,-500.0,0.0001315,2]
[53103,1714332702953,-266.3,0.0001315,2]
[53105,1714332702977,-500.0,0.0001315,2]
[53106,1714332702988,-1428.38,0.0001315,2]
[53107,1714332702999,-3955.52,0.0001315,2]
[53108,1714332703011,-500.0,0.0001315,2]
[53109,1714332703023,-500.0,0.0001315,2]
[53110,1714332703035,-500.0,0.0001315,2]
[53111,1714332703047,-500.0,0.0001315,2]
[53112,1714332703059,-544.66,0.0001315,2]
[53113,1714332703071,-500.0,0.0001315,2]
[53114,1714332703082,-833.468227,0.0001315,2]
[53115,1714332703095,-502.62,0.0001315,2]
[53116,1714332703107,-359.28,0.0001315,2]
[53117,1714332703119,-1542.66,0.0001315,2]
[53118,1714332703133,-833.468227,0.0001315,2]
[53119,1714332703145,-3310.626766,0.0001315,2]
[53120,1714332703156,-3310.626766,0.0001315,2]
[53121,1714332703168,-151.0,0.0001315,2]
[53122,1714332703180,-654.38,0.0001315,2]
[53123,1714332703192,-500.0,0.0001315,2]
[53124,1714332703204,-500.0,0.0001315,2]
[53125,1714332703216,-243.71,0.0001315,2]
[53126,1714332703227,-205.356982,0.0001315,2]
[53127,1714332703239,-327.44,0.0001315,2]
[53129,1714332703266,-986.66,0.0001315,2]
[53131,1714332703289,-151.0,0.0001315,2]
[53133,1714332703312,-205.356982,0.0001315,2]
[53135,1714332703336,-500.0,0.0001315,2]
[53137,1714332703359,-476.94,0.0001315,2]
[53139,1714332703383,-2711.49,0.0001315,2]
[53141,1714332703407,-1460.26,0.0001315,2]
[53143,1714332703430,-500.0,0.0001315,2]
[53145,1714332703454,-558.530855,0.0001315,2]
[53146,1714332703466,-500.0,0.0001315,2]
[53147,1714332703478,-500.0,0.0001315,2]
[53149,1714332703502,-1365.07,0.0001315,2]
[53150,1714332703514,-2596.06,0.0001315,2]
[53151,1714332703526,-676.21,0.0001315,2]
[53152,1714332703538,-1132.59,0.0001315,2]
[53153,1714332703549,-1872.89,0.0001315,2]
[53155,1714332703573,-500.0,0.0001315,2]
[53157,1714332703596,-500.0,0.0001315,2]
[53159,1714332703619,-500.0,0.0001315,2]
[53161,1714332703644,-740.66,0.0001315,2]
[53162,1714332703656,-500.0,0.0001315,2]
[53163,1714332703668,-500.0,0.0001315,2]
[53164,1714332703679,-5665.06,0.0001315,2]
[53165,1714332703691,-1875.79,0.0001315,2]
[53167,1714332703717,-500.0,0.0001315,2]
[53169,1714332703742,-500.0,0.0001315,2]
[53171,1714332703767,-1411.81,0.0001315,2]
[53172,1714332703779,-750.57,0.0001315,2]
[53173,1714332703790,-2812.04,0.0001315,2]
[53175,1714332703815,-500.0,0.0001315,2]
[53177,1714332703838,-584.06,0.0001315,2]
[53179,1714332704221,-1373.99,0.0001315,2]
[53181,1714332704258,-1168.89,0.0001315,2]
[53183,1714332704280,-1535.8,0.0001315,2]
[53185,1714332704299,-500.0,0.0001315,2]
[53187,1714332704318,-708.74,0.0001315,2]
[53189,1714332704337,-500.0,0.0001315,2]
[53191,1714332704356,-500.0,0.0001315,2]
[53192,1714332704365,-364.84,0.0001315,2]
[53193,1714332704375,-500.0,0.0001315,2]
[53194,1714332704384,-500.0,0.0001315,2]
[53195,1714332704393,-500.0,0.0001315,2]
[53196,1714332704404,-585.69,0.0001315,2]
[53197,1714332704413,-500.0,0.0001315,2]
[53198,1714332704423,-5940.9,0.0001315,2]
[53199,1714332704433,-871.33,0.0001315,2]
[53200,1714332704442,-363.88,0.0001315,2]
[53201,1714332704452,-533.96,0.0001315,2]
[53202,1714332704461,-500.0,0.0001315,2]
[53203,1714332704470,-500.0,0.0001315,2]
[53204,1714332704479,-510.94,0.0001315,2]
[53205,1714332704489,-1418.28,0.0001315,2]
[53206,1714332704499,-1888.98,0.0001315,2]
[53207,1714332704508,-500.0,0.0001315,2]
[53208,1714332704518,-500.0,0.0001315,2]
[53209,1714332704528,-1621.44,0.0001315,2]
[53210,1714332704538,-800.93,0.0001315,2]
[53211,1714332704547,-626.38,0.0001315,2]
[53212,1714332704557,-500.0,0.0001315,2]
[53213,1714332704567,-6175.8,0.0001315,2]
[53214,1714332704577,-1013.17,0.0001315,2]
[53215,1714332704587,-500.0,0.0001315,2]
[53216,1714332704597,-500.0,0.0001315,2]
[53217,1714332704606,-500.0,0.0001315,2]
[53218,1714332704616,-14691.06,0.0001315,2]
[53219,1714332704626,-1543.57,0.00013151,2]
[53221,1714332704645,-1595.02,0.00013151,2]
[53222,1714332704655,-1063.35,0.00013151,2]
[53223,1714332704664,-886.12,0.00013151,2]
[53224,1714332704674,-738.43,0.00013151,2]
[53225,1714332704684,-615.36,0.00013151,2]
[53226,1714332704694,-512.8,0.00013151,2]
[53227,1714332704704,-427.34,0.00013151,2]
[53228,1714332704719,-356.11,0.00013151,2]
[53229,1714332704729,-296.76,0.00013151,2]
[53230,1714332704738,-247.3,0.00013151,2]
[53231,1714332704747,-206.08,0.00013151,2]
[53232,1714332704758,-1000.0,0.00013376,2]
[53233,1714332704768,-400.0,0.00013414,2]
[53234,1714332704777,-500.0,0.00013424,2]
[53235,1714332704788,-500.0,0.00013424,2]
[53236,1714332704799,-500.0,0.00013424,2]
[53237,1714332704807,-500.0,0.00013424,2]
[53239,1714332704826,-457.42,0.00013424,2]
[53241,1714332704845,-722.31,0.00013424,2]
[53243,1714332704864,-500.0,0.00013424,2]
[53245,1714332704885,-500.0,0.00013424,2]
[53247,1714332704903,-500.0,0.00013424,2]
[53248,1714332704913,-500.0,0.00013424,2]
[53249,1714332704923,-500.0,0.00013424,2]
[53250,1714332704932,-400.74,0.00013424,2]
[53251,1714332704942,-429.36,0.00013424,2]
[53252,1714332704951,-500.0,0.00013424,2]
[53253,1714332704960,-224.28,0.00013424,2]
[53255,1714332704979,-538.07,0.00013424,2]
[53257,1714332704998,-602.29,0.00013424,2]
[53258,1714332705008,-654.13,0.00013424,2]
[53259,1714332705018,-500.0,0.00013424,2]
[53260,1714332705027,-500.0,0.00013424,2]
[53261,1714332705038,-202.24,0.00013424,2]
[53263,1714332705057,-558.9,0.00013424,2]
[53265,1714332705077,-500.0,0.00013424,2]
[53267,1714332705096,-500.0,0.00013424,2]
[53268,1714332705106,-500.0,0.00013424,2]
[53269,1714332705116,-500.0,0.00013424,2]
[53270,1714332705125,-568.6,0.00013424,2]
[53271,1714332705136,-958.14,0.00013424,2]
[53272,1714332705146,-500.0,0.00013424,2]
[53273,1714332705155,-500.0,0.00013424,2]
[53275,1714332705188,-500.0,0.00013424,2]
[53277,1714332705209,-500.0,0.00013424,2]
[53279,1714332705230,-545.47,0.00013424,2]
[53281,1714332705251,-902.88,0.00013424,2]
[53283,1714332705273,-500.0,0.00013424,2]
[53285,1714332705296,-599.09,0.00013424,2]
[53287,1714332705317,-500.0,0.00013424,2]
[53289,1714332705338,-500.0,0.00013424,2]
[53291,1714332705358,-500.0,0.00013424,2]
[53293,1714332705381,-500.0,0.00013424,2]
[53295,1714332705401,-500.0,0.00013424,2]
[53296,1714332705411,-539.77,0.00013424,2]
[53297,1714332705421,-500.0,0.00013424,2]
[53298,1714332705431,-500.0,0.00013424,2]
[53299,1714332705441,-500.0,0.00013424,2]
[53301,1714332705461,-500.0,0.00013424,2]
[53302,1714332705471,-175.16693767,0.00013424,2]
[53303,1714332705481,-500.0,0.00013424,2]
[53304,1714332705491,-795.36,0.00013424,2]
[53305,1714332705502,-640.01,0.00013424,2]
[53306,1714332705512,-500.0,0.00013424,2]
[53307,1714332705522,-500.0,0.00013424,2]
[53309,1714332705541,-517.51,0.00013424,2]
[53311,1714332705561,-500.0,0.00013424,2]
[53312,1714332705571,-555.93,0.00013424,2]
[53313,1714332705581,-500.0,0.00013424,2]
[53314,1714332705591,-500.0,0.00013424,2]
[53315,1714332705601,-150.0,0.00013424,2]
[53317,1714332705621,-500.0,0.00013424,2]
[53319,1714332705642,-500.0,0.00013424,2]
[53321,1714332705663,-397.02,0.00013424,2]
[53323,1714332705683,-500.0,0.00013424,2]
[53325,1714332705703,-500.0,0.00013424,2]
[53327,1714332705728,-500.0,0.00013424,2]
[53329,1714332705750,-500.0,0.00013424,2]
[53331,1714332705772,-500.0,0.00013424,2]
[53333,1714332705795,-500.0,0.00013424,2]
[53335,1714332705816,-519.21,0.00013424,2]
[53337,1714332705838,-306.119201,0.00013424,2]
[53339,1714332705858,-500.0,0.00013424,2]
[53341,1714332705881,-500.0,0.00013424,2]
[53343,1714332705903,-569.5,0.00013424,2]
[53345,1714332705923,-500.0,0.00013424,2]
[53347,1714332705944,-500.0,0.00013424,2]
[53349,1714332705966,-500.0,0.00013424,2]
[53351,1714332705986,-500.0,0.00013424,2]
[53353,1714332706007,-1080.1,0.00013424,2]
[53355,1714332706027,-500.0,0.00013424,2]
[53357,1714332706049,-151.0,0.00013424,2]
[53359,1714332706072,-500.0,0.00013424,2]
[53361,1714332706093,-1921.69,0.00013424,2]
[53363,1714332706113,-2450.5,0.00013424,2]
[53365,1714332706135,-579.57,0.00013424,2]
[53367,1714332706156,-561.12,0.00013424,2]
[53369,1714332706176,-732.55,0.00013424,2]
[53371,1714332706197,-500.0,0.00013424,2]
[53373,1714332706219,-200.68,0.00013424,2]
[53375,1714332706240,-292.88,0.00013424,2]
[53377,1714332706261,-428.4,0.00013424,2]
[53379,1714332706281,-951.91,0.00013424,2]
[53381,1714332706301,-1112.23,0.00013424,2]
[53383,1714332706320,-3135.39,0.00013424,2]
[53385,1714332706340,-500.0,0.00013424,2]
[53387,1714332706359,-1026.71,0.00013424,2]
[53389,1714332706379,-768.49,0.00013424,2]
[53391,1714332706401,-1154.15,0.00013424,2]
[53393,1714332706421,-506.26,0.00013424,2]
[53395,1714332706443,-1149.55,0.00013424,2]
[53397,1714332706462,-500.0,0.00013424,2]
[53399,1714332706482,-500.0,0.00013424,2]
[53401,1714332706501,-500.0,0.00013424,2]
[53403,1714332706520,-1626.01,0.00013424,2]
[53405,1714332706539,-500.0,0.00013424,2]
[53407,1714332706558,-974.35,0.00013424,2]
[53409,1714332706578,-500.0,0.00013424,2]
[53411,1714332706598,-1632.62,0.00013424,2]
[53413,1714332706616,-29183.3,0.00013424,2]
[53415,1714332706636,-2058.85,0.00013424,2]
[53417,1714332706656,-500.0,0.00013424,2]
[53419,1714332706677,-645.54,0.00013424,2]
[53421,1714332706696,-500.0,0.00013424,2]
[53423,1714332706718,-3955.52,0.00013424,2]
[53425,1714332706738,-500.0,0.00013424,2]
[53427,1714332706759,-500.0,0.00013424,2]
[53429,1714332706778,-502.62,0.00013424,2]
[53431,1714332706798,-654.38,0.00013424,2]
[53433,1714332706817,-242.48,0.00013424,2]
[53434,1714332706827,-500.0,0.00013424,2]
[53435,1714332706836,-986.66,0.00013424,2]
[53436,1714332706846,-321.57,0.00013424,2]
[53437,1714332706856,-1097.95,0.00013424,2]
[53438,1714332706866,-500.0,0.00013424,2]
[53439,1714332706877,-500.0,0.00013424,2]
[53441,1714332706899,-500.0,0.00013424,2]
[53443,1714332706922,-369.55,0.00013424,2]
[53445,1714332706943,-500.0,0.00013424,2]
[53447,1714332706961,-500.0,0.00013424,2]
[53448,1714332706971,-514.94,0.00013424,2]
[53449,1714332706981,-1365.07,0.00013424,2]
[53451,1714332707001,-676.21,0.00013424,2]
[53453,1714332707020,-737.82,0.00013424,2]
[53455,1714332707039,-500.0,0.00013424,2]
[53457,1714332707058,-545.78,0.00013424,2]
[53459,1714332707078,-500.0,0.00013424,2]
[53461,1714332707098,-500.0,0.00013424,2]
[53463,1714332707118,-5665.06,0.00013424,2]
[53465,1714332707137,-642.29,0.00013424,2]
[53467,1714332707158,-500.0,0.00013424,2]
[53469,1714332707177,-583.55,0.00013424,2]
[53471,1714332707198,-750.57,0.00013424,2]
[53473,1714332707218,-500.0,0.00013424,2]
[53474,1714332707229,-500.0,0.00013424,2]
[53475,1714332707239,-584.06,0.00013424,2]
[53476,1714332707248,-946.93,0.00013424,2]
[53477,1714332707258,-1373.99,0.00013424,2]
[53478,1714332707268,-1559.81,0.00013424,2]
[53479,1714332707278,-1168.89,0.00013424,2]
[53480,1714332707288,-500.0,0.00013424,2]
[53481,1714332707298,-1535.8,0.00013424,2]
[53482,1714332707310,-500.0,0.00013424,2]
[53483,1714332707535,-589.08,0.00013424,2]
[53484,1714332707546,-500.0,0.00013424,2]
[53485,1714332707556,-708.74,0.00013424,2]
[53486,1714332707567,-503.26844107,0.00013424,2]
[53487,1714332707577,-486.8,0.00013424,2]
[53488,1714332707587,-500.0,0.00013424,2]
[53489,1714332707596,-500.0,0.00013424,2]